{"text_format":"1","workbook":"xlsx","n_sheets":136,"sheets":["Foglio1","Foglio2","Foglio3","Foglio4","Foglio5","Foglio6","Foglio7","Foglio8","Foglio9","Foglio10","Foglio11","Foglio12","Foglio13","Foglio14","Foglio15","Foglio16","Foglio17","Foglio18","Foglio19","Foglio20","Foglio21","Foglio22","Foglio23","Foglio24","Foglio25","Foglio26","Foglio27","Foglio28","Foglio29","Foglio30","Foglio31","Foglio32","Foglio33","Foglio34","Foglio35","Foglio36","Foglio37","Foglio38","Foglio39","Foglio40","Foglio41","Foglio42","Foglio43","Foglio44","Foglio45","Foglio46","Foglio47","Foglio48","Foglio49","Foglio50","Foglio51","Foglio52","Foglio53","Foglio54","Foglio55","Foglio56","Foglio57","Foglio58","Foglio59","Foglio60","Foglio61","Foglio62","Foglio63","Foglio64","Foglio65","Foglio66","Foglio67","Foglio68","Foglio69","Foglio70","Foglio71","Foglio72","Foglio73","Foglio74","Foglio75","Foglio76","Foglio77","Foglio78","Foglio79","Foglio80","Foglio81","Foglio82","Foglio83","Foglio84","Foglio85","Foglio86","Foglio87","Foglio88","Foglio89","Foglio90","Foglio91","Foglio92","Foglio93","Foglio94","Foglio95","Foglio96","Foglio97","Foglio98","Foglio99","Foglio100","Foglio101","Foglio102","Foglio103","Foglio104","Foglio105","Foglio106","Foglio107","Foglio108","Foglio109","Foglio110","Foglio111","Foglio112","Foglio113","Foglio114","Foglio115","Foglio116","Foglio117","Foglio118","Foglio119","Foglio120","Foglio121","Foglio122","Foglio123","Foglio124","Foglio125","Foglio126","Foglio127","Foglio128","Foglio129","Foglio130","Foglio131","Foglio132","Foglio133","Foglio134","Foglio135","Foglio136"],"not_rendered":{"charts":0,"images":0,"macros":1,"external_links":0,"defined_names":0,"comments":0,"pivot_tables":0},"unopened":[],"bounds":{"document_bytes":16777216,"sheet_cells":100000,"rows_first":2000,"rows_last":500,"rows_between":2000,"halvings":0,"cell_chars":16384,"cell_head_chars":4096},"cells_cut":0,"cells_raw":0,"read":"whole","date_system":"1900"}

{"sheet":"Foglio1","index":0,"n_rows":36,"n_cols":11,"rows_kept":36,"cut":false,"hidden":false,"merged":[[0,1,0,7]]}
[{"$f":"J36","v":136},"C O L L E G A M E N T I     A I      F O G L I  D I   L A V O R O",null,null,null,null,null,null,{"$f":"A1","v":136}]
[{"$f":"IFERROR(LEFT(B2,1),\"\")","v":"F"},"Foglio1","F","Foglio35","F","Foglio69","F","Foglio103"]
["F","Foglio2","F","Foglio36","F","Foglio70","F","Foglio104"]
["F","Foglio3","F","Foglio37","F","Foglio71","F","Foglio105"]
["F","Foglio4","F","Foglio38","F","Foglio72","F","Foglio106"]
["F","Foglio5","F","Foglio39","F","Foglio73","F","Foglio107"]
["F","Foglio6","F","Foglio40","F","Foglio74","F","Foglio108"]
["F","Foglio7","F","Foglio41","F","Foglio75","F","Foglio109"]
["F","Foglio8","F","Foglio42","F","Foglio76","F","Foglio110"]
["F","Foglio9","F","Foglio43","F","Foglio77","F","Foglio111"]
["F","Foglio10","F","Foglio44","F","Foglio78","F","Foglio112"]
["F","Foglio11","F","Foglio45","F","Foglio79","F","Foglio113"]
["F","Foglio12","F","Foglio46","F","Foglio80","F","Foglio114"]
["F","Foglio13","F","Foglio47","F","Foglio81","F","Foglio115"]
["F","Foglio14","F","Foglio48","F","Foglio82","F","Foglio116"]
["F","Foglio15","F","Foglio49","F","Foglio83","F","Foglio117"]
["F","Foglio16","F","Foglio50","F","Foglio84","F","Foglio118"]
["F","Foglio17","F","Foglio51","F","Foglio85","F","Foglio119"]
["F","Foglio18","F","Foglio52","F","Foglio86","F","Foglio120"]
["F","Foglio19","F","Foglio53","F","Foglio87","F","Foglio121"]
["F","Foglio20","F","Foglio54","F","Foglio88","F","Foglio122"]
["F","Foglio21","F","Foglio55","F","Foglio89","F","Foglio123"]
["F","Foglio22","F","Foglio56","F","Foglio90","F","Foglio124"]
["F","Foglio23","F","Foglio57","F","Foglio91","F","Foglio125"]
["F","Foglio24","F","Foglio58","F","Foglio92","F","Foglio126"]
["F","Foglio25","F","Foglio59","F","Foglio93","F","Foglio127"]
[{"$f":"IFERROR(LEFT(B27,1),\"\")","v":"F"},"Foglio26",{"$f":"IFERROR(LEFT(D27,1),\"\")","v":"F"},"Foglio60",{"$f":"IFERROR(LEFT(F27,1),\"\")","v":"F"},"Foglio94",{"$f":"IFERROR(LEFT(H27,1),\"\")","v":"F"},"Foglio128"]
[{"$f":"IFERROR(LEFT(B28,1),\"\")","v":"F"},"Foglio27","F","Foglio61","F","Foglio95","F","Foglio129"]
["F","Foglio28","F","Foglio62","F","Foglio96","F","Foglio130"]
["F","Foglio29","F","Foglio63","F","Foglio97","F","Foglio131"]
["F","Foglio30","F","Foglio64","F","Foglio98","F","Foglio132"]
["F","Foglio31","F","Foglio65","F","Foglio99","F","Foglio133"]
["F","Foglio32","F","Foglio66","F","Foglio100","F","Foglio134"]
["F","Foglio33","F","Foglio67","F","Foglio101","F","Foglio135"]
["F","Foglio34","F","Foglio68","F","Foglio102","F","Foglio136"]
[null,{"$f":"COUNTA(B2:B35)","v":34},null,{"$f":"COUNTA(D2:D35)","v":34},null,{"$f":"COUNTA(F2:F35)","v":34},null,{"$f":"COUNTA(H2:H35)","v":34},{"$f":"SUM(B36,D36,F36,H36)","v":136},{"$f":"SUM(C36,E36,G36,I36)","v":136},{"$f":"COUNTA(K2:K35)","v":0}]

{"sheet":"Foglio2","index":1,"n_rows":0,"n_cols":0,"rows_kept":0,"cut":false,"hidden":false,"merged":[]}

{"sheet":"Foglio3","index":2,"n_rows":0,"n_cols":0,"rows_kept":0,"cut":false,"hidden":false,"merged":[]}

{"sheet":"Foglio4","index":3,"n_rows":0,"n_cols":0,"rows_kept":0,"cut":false,"hidden":false,"merged":[]}

{"sheet":"Foglio5","index":4,"n_rows":0,"n_cols":0,"rows_kept":0,"cut":false,"hidden":false,"merged":[]}

{"sheet":"Foglio6","index":5,"n_rows":0,"n_cols":0,"rows_kept":0,"cut":false,"hidden":false,"merged":[]}

{"sheet":"Foglio7","index":6,"n_rows":0,"n_cols":0,"rows_kept":0,"cut":false,"hidden":false,"merged":[]}

{"sheet":"Foglio8","index":7,"n_rows":0,"n_cols":0,"rows_kept":0,"cut":false,"hidden":false,"merged":[]}

{"sheet":"Foglio9","index":8,"n_rows":0,"n_cols":0,"rows_kept":0,"cut":false,"hidden":false,"merged":[]}

{"sheet":"Foglio10","index":9,"n_rows":0,"n_cols":0,"rows_kept":0,"cut":false,"hidden":false,"merged":[]}

{"sheet":"Foglio11","index":10,"n_rows":0,"n_cols":0,"rows_kept":0,"cut":false,"hidden":false,"merged":[]}

{"sheet":"Foglio12","index":11,"n_rows":0,"n_cols":0,"rows_kept":0,"cut":false,"hidden":false,"merged":[]}

{"sheet":"Foglio13","index":12,"n_rows":0,"n_cols":0,"rows_kept":0,"cut":false,"hidden":false,"merged":[]}

{"sheet":"Foglio14","index":13,"n_rows":0,"n_cols":0,"rows_kept":0,"cut":false,"hidden":false,"merged":[]}

{"sheet":"Foglio15","index":14,"n_rows":0,"n_cols":0,"rows_kept":0,"cut":false,"hidden":false,"merged":[]}

{"sheet":"Foglio16","index":15,"n_rows":0,"n_cols":0,"rows_kept":0,"cut":false,"hidden":false,"merged":[]}

{"sheet":"Foglio17","index":16,"n_rows":0,"n_cols":0,"rows_kept":0,"cut":false,"hidden":false,"merged":[]}

{"sheet":"Foglio18","index":17,"n_rows":0,"n_cols":0,"rows_kept":0,"cut":false,"hidden":false,"merged":[]}

{"sheet":"Foglio19","index":18,"n_rows":0,"n_cols":0,"rows_kept":0,"cut":false,"hidden":false,"merged":[]}

{"sheet":"Foglio20","index":19,"n_rows":0,"n_cols":0,"rows_kept":0,"cut":false,"hidden":false,"merged":[]}

{"sheet":"Foglio21","index":20,"n_rows":0,"n_cols":0,"rows_kept":0,"cut":false,"hidden":false,"merged":[]}

{"sheet":"Foglio22","index":21,"n_rows":0,"n_cols":0,"rows_kept":0,"cut":false,"hidden":false,"merged":[]}

{"sheet":"Foglio23","index":22,"n_rows":0,"n_cols":0,"rows_kept":0,"cut":false,"hidden":false,"merged":[]}

{"sheet":"Foglio24","index":23,"n_rows":0,"n_cols":0,"rows_kept":0,"cut":false,"hidden":false,"merged":[]}

{"sheet":"Foglio25","index":24,"n_rows":0,"n_cols":0,"rows_kept":0,"cut":false,"hidden":false,"merged":[]}

{"sheet":"Foglio26","index":25,"n_rows":0,"n_cols":0,"rows_kept":0,"cut":false,"hidden":false,"merged":[]}

{"sheet":"Foglio27","index":26,"n_rows":0,"n_cols":0,"rows_kept":0,"cut":false,"hidden":false,"merged":[]}

{"sheet":"Foglio28","index":27,"n_rows":0,"n_cols":0,"rows_kept":0,"cut":false,"hidden":false,"merged":[]}

{"sheet":"Foglio29","index":28,"n_rows":0,"n_cols":0,"rows_kept":0,"cut":false,"hidden":false,"merged":[]}

{"sheet":"Foglio30","index":29,"n_rows":0,"n_cols":0,"rows_kept":0,"cut":false,"hidden":false,"merged":[]}

{"sheet":"Foglio31","index":30,"n_rows":0,"n_cols":0,"rows_kept":0,"cut":false,"hidden":false,"merged":[]}

{"sheet":"Foglio32","index":31,"n_rows":0,"n_cols":0,"rows_kept":0,"cut":false,"hidden":false,"merged":[]}

{"sheet":"Foglio33","index":32,"n_rows":0,"n_cols":0,"rows_kept":0,"cut":false,"hidden":false,"merged":[]}

{"sheet":"Foglio34","index":33,"n_rows":0,"n_cols":0,"rows_kept":0,"cut":false,"hidden":false,"merged":[]}

{"sheet":"Foglio35","index":34,"n_rows":0,"n_cols":0,"rows_kept":0,"cut":false,"hidden":false,"merged":[]}

{"sheet":"Foglio36","index":35,"n_rows":0,"n_cols":0,"rows_kept":0,"cut":false,"hidden":false,"merged":[]}

{"sheet":"Foglio37","index":36,"n_rows":0,"n_cols":0,"rows_kept":0,"cut":false,"hidden":false,"merged":[]}

{"sheet":"Foglio38","index":37,"n_rows":0,"n_cols":0,"rows_kept":0,"cut":false,"hidden":false,"merged":[]}

{"sheet":"Foglio39","index":38,"n_rows":0,"n_cols":0,"rows_kept":0,"cut":false,"hidden":false,"merged":[]}

{"sheet":"Foglio40","index":39,"n_rows":0,"n_cols":0,"rows_kept":0,"cut":false,"hidden":false,"merged":[]}

{"sheet":"Foglio41","index":40,"n_rows":0,"n_cols":0,"rows_kept":0,"cut":false,"hidden":false,"merged":[]}

{"sheet":"Foglio42","index":41,"n_rows":0,"n_cols":0,"rows_kept":0,"cut":false,"hidden":false,"merged":[]}

{"sheet":"Foglio43","index":42,"n_rows":0,"n_cols":0,"rows_kept":0,"cut":false,"hidden":false,"merged":[]}

{"sheet":"Foglio44","index":43,"n_rows":0,"n_cols":0,"rows_kept":0,"cut":false,"hidden":false,"merged":[]}

{"sheet":"Foglio45","index":44,"n_rows":0,"n_cols":0,"rows_kept":0,"cut":false,"hidden":false,"merged":[]}

{"sheet":"Foglio46","index":45,"n_rows":0,"n_cols":0,"rows_kept":0,"cut":false,"hidden":false,"merged":[]}

{"sheet":"Foglio47","index":46,"n_rows":0,"n_cols":0,"rows_kept":0,"cut":false,"hidden":false,"merged":[]}

{"sheet":"Foglio48","index":47,"n_rows":0,"n_cols":0,"rows_kept":0,"cut":false,"hidden":false,"merged":[]}

{"sheet":"Foglio49","index":48,"n_rows":0,"n_cols":0,"rows_kept":0,"cut":false,"hidden":false,"merged":[]}

{"sheet":"Foglio50","index":49,"n_rows":0,"n_cols":0,"rows_kept":0,"cut":false,"hidden":false,"merged":[]}

{"sheet":"Foglio51","index":50,"n_rows":0,"n_cols":0,"rows_kept":0,"cut":false,"hidden":false,"merged":[]}

{"sheet":"Foglio52","index":51,"n_rows":0,"n_cols":0,"rows_kept":0,"cut":false,"hidden":false,"merged":[]}

{"sheet":"Foglio53","index":52,"n_rows":0,"n_cols":0,"rows_kept":0,"cut":false,"hidden":false,"merged":[]}

{"sheet":"Foglio54","index":53,"n_rows":0,"n_cols":0,"rows_kept":0,"cut":false,"hidden":false,"merged":[]}

{"sheet":"Foglio55","index":54,"n_rows":0,"n_cols":0,"rows_kept":0,"cut":false,"hidden":false,"merged":[]}

{"sheet":"Foglio56","index":55,"n_rows":0,"n_cols":0,"rows_kept":0,"cut":false,"hidden":false,"merged":[]}

{"sheet":"Foglio57","index":56,"n_rows":0,"n_cols":0,"rows_kept":0,"cut":false,"hidden":false,"merged":[]}

{"sheet":"Foglio58","index":57,"n_rows":0,"n_cols":0,"rows_kept":0,"cut":false,"hidden":false,"merged":[]}

{"sheet":"Foglio59","index":58,"n_rows":0,"n_cols":0,"rows_kept":0,"cut":false,"hidden":false,"merged":[]}

{"sheet":"Foglio60","index":59,"n_rows":0,"n_cols":0,"rows_kept":0,"cut":false,"hidden":false,"merged":[]}

{"sheet":"Foglio61","index":60,"n_rows":0,"n_cols":0,"rows_kept":0,"cut":false,"hidden":false,"merged":[]}

{"sheet":"Foglio62","index":61,"n_rows":0,"n_cols":0,"rows_kept":0,"cut":false,"hidden":false,"merged":[]}

{"sheet":"Foglio63","index":62,"n_rows":0,"n_cols":0,"rows_kept":0,"cut":false,"hidden":false,"merged":[]}

{"sheet":"Foglio64","index":63,"n_rows":0,"n_cols":0,"rows_kept":0,"cut":false,"hidden":false,"merged":[]}

{"sheet":"Foglio65","index":64,"n_rows":0,"n_cols":0,"rows_kept":0,"cut":false,"hidden":false,"merged":[]}

{"sheet":"Foglio66","index":65,"n_rows":0,"n_cols":0,"rows_kept":0,"cut":false,"hidden":false,"merged":[]}

{"sheet":"Foglio67","index":66,"n_rows":0,"n_cols":0,"rows_kept":0,"cut":false,"hidden":false,"merged":[]}

{"sheet":"Foglio68","index":67,"n_rows":0,"n_cols":0,"rows_kept":0,"cut":false,"hidden":false,"merged":[]}

{"sheet":"Foglio69","index":68,"n_rows":0,"n_cols":0,"rows_kept":0,"cut":false,"hidden":false,"merged":[]}

{"sheet":"Foglio70","index":69,"n_rows":0,"n_cols":0,"rows_kept":0,"cut":false,"hidden":false,"merged":[]}

{"sheet":"Foglio71","index":70,"n_rows":0,"n_cols":0,"rows_kept":0,"cut":false,"hidden":false,"merged":[]}

{"sheet":"Foglio72","index":71,"n_rows":0,"n_cols":0,"rows_kept":0,"cut":false,"hidden":false,"merged":[]}

{"sheet":"Foglio73","index":72,"n_rows":0,"n_cols":0,"rows_kept":0,"cut":false,"hidden":false,"merged":[]}

{"sheet":"Foglio74","index":73,"n_rows":0,"n_cols":0,"rows_kept":0,"cut":false,"hidden":false,"merged":[]}

{"sheet":"Foglio75","index":74,"n_rows":0,"n_cols":0,"rows_kept":0,"cut":false,"hidden":false,"merged":[]}

{"sheet":"Foglio76","index":75,"n_rows":0,"n_cols":0,"rows_kept":0,"cut":false,"hidden":false,"merged":[]}

{"sheet":"Foglio77","index":76,"n_rows":0,"n_cols":0,"rows_kept":0,"cut":false,"hidden":false,"merged":[]}

{"sheet":"Foglio78","index":77,"n_rows":0,"n_cols":0,"rows_kept":0,"cut":false,"hidden":false,"merged":[]}

{"sheet":"Foglio79","index":78,"n_rows":0,"n_cols":0,"rows_kept":0,"cut":false,"hidden":false,"merged":[]}

{"sheet":"Foglio80","index":79,"n_rows":0,"n_cols":0,"rows_kept":0,"cut":false,"hidden":false,"merged":[]}

{"sheet":"Foglio81","index":80,"n_rows":0,"n_cols":0,"rows_kept":0,"cut":false,"hidden":false,"merged":[]}

{"sheet":"Foglio82","index":81,"n_rows":0,"n_cols":0,"rows_kept":0,"cut":false,"hidden":false,"merged":[]}

{"sheet":"Foglio83","index":82,"n_rows":0,"n_cols":0,"rows_kept":0,"cut":false,"hidden":false,"merged":[]}

{"sheet":"Foglio84","index":83,"n_rows":0,"n_cols":0,"rows_kept":0,"cut":false,"hidden":false,"merged":[]}

{"sheet":"Foglio85","index":84,"n_rows":0,"n_cols":0,"rows_kept":0,"cut":false,"hidden":false,"merged":[]}

{"sheet":"Foglio86","index":85,"n_rows":0,"n_cols":0,"rows_kept":0,"cut":false,"hidden":false,"merged":[]}

{"sheet":"Foglio87","index":86,"n_rows":0,"n_cols":0,"rows_kept":0,"cut":false,"hidden":false,"merged":[]}

{"sheet":"Foglio88","index":87,"n_rows":0,"n_cols":0,"rows_kept":0,"cut":false,"hidden":false,"merged":[]}

{"sheet":"Foglio89","index":88,"n_rows":0,"n_cols":0,"rows_kept":0,"cut":false,"hidden":false,"merged":[]}

{"sheet":"Foglio90","index":89,"n_rows":0,"n_cols":0,"rows_kept":0,"cut":false,"hidden":false,"merged":[]}

{"sheet":"Foglio91","index":90,"n_rows":0,"n_cols":0,"rows_kept":0,"cut":false,"hidden":false,"merged":[]}

{"sheet":"Foglio92","index":91,"n_rows":0,"n_cols":0,"rows_kept":0,"cut":false,"hidden":false,"merged":[]}

{"sheet":"Foglio93","index":92,"n_rows":0,"n_cols":0,"rows_kept":0,"cut":false,"hidden":false,"merged":[]}

{"sheet":"Foglio94","index":93,"n_rows":0,"n_cols":0,"rows_kept":0,"cut":false,"hidden":false,"merged":[]}

{"sheet":"Foglio95","index":94,"n_rows":0,"n_cols":0,"rows_kept":0,"cut":false,"hidden":false,"merged":[]}

{"sheet":"Foglio96","index":95,"n_rows":0,"n_cols":0,"rows_kept":0,"cut":false,"hidden":false,"merged":[]}

{"sheet":"Foglio97","index":96,"n_rows":0,"n_cols":0,"rows_kept":0,"cut":false,"hidden":false,"merged":[]}

{"sheet":"Foglio98","index":97,"n_rows":0,"n_cols":0,"rows_kept":0,"cut":false,"hidden":false,"merged":[]}

{"sheet":"Foglio99","index":98,"n_rows":0,"n_cols":0,"rows_kept":0,"cut":false,"hidden":false,"merged":[]}

{"sheet":"Foglio100","index":99,"n_rows":0,"n_cols":0,"rows_kept":0,"cut":false,"hidden":false,"merged":[]}

{"sheet":"Foglio101","index":100,"n_rows":0,"n_cols":0,"rows_kept":0,"cut":false,"hidden":false,"merged":[]}

{"sheet":"Foglio102","index":101,"n_rows":0,"n_cols":0,"rows_kept":0,"cut":false,"hidden":false,"merged":[]}

{"sheet":"Foglio103","index":102,"n_rows":0,"n_cols":0,"rows_kept":0,"cut":false,"hidden":false,"merged":[]}

{"sheet":"Foglio104","index":103,"n_rows":0,"n_cols":0,"rows_kept":0,"cut":false,"hidden":false,"merged":[]}

{"sheet":"Foglio105","index":104,"n_rows":0,"n_cols":0,"rows_kept":0,"cut":false,"hidden":false,"merged":[]}

{"sheet":"Foglio106","index":105,"n_rows":0,"n_cols":0,"rows_kept":0,"cut":false,"hidden":false,"merged":[]}

{"sheet":"Foglio107","index":106,"n_rows":0,"n_cols":0,"rows_kept":0,"cut":false,"hidden":false,"merged":[]}

{"sheet":"Foglio108","index":107,"n_rows":0,"n_cols":0,"rows_kept":0,"cut":false,"hidden":false,"merged":[]}

{"sheet":"Foglio109","index":108,"n_rows":0,"n_cols":0,"rows_kept":0,"cut":false,"hidden":false,"merged":[]}

{"sheet":"Foglio110","index":109,"n_rows":0,"n_cols":0,"rows_kept":0,"cut":false,"hidden":false,"merged":[]}

{"sheet":"Foglio111","index":110,"n_rows":0,"n_cols":0,"rows_kept":0,"cut":false,"hidden":false,"merged":[]}

{"sheet":"Foglio112","index":111,"n_rows":0,"n_cols":0,"rows_kept":0,"cut":false,"hidden":false,"merged":[]}

{"sheet":"Foglio113","index":112,"n_rows":0,"n_cols":0,"rows_kept":0,"cut":false,"hidden":false,"merged":[]}

{"sheet":"Foglio114","index":113,"n_rows":0,"n_cols":0,"rows_kept":0,"cut":false,"hidden":false,"merged":[]}

{"sheet":"Foglio115","index":114,"n_rows":0,"n_cols":0,"rows_kept":0,"cut":false,"hidden":false,"merged":[]}

{"sheet":"Foglio116","index":115,"n_rows":0,"n_cols":0,"rows_kept":0,"cut":false,"hidden":false,"merged":[]}

{"sheet":"Foglio117","index":116,"n_rows":0,"n_cols":0,"rows_kept":0,"cut":false,"hidden":false,"merged":[]}

{"sheet":"Foglio118","index":117,"n_rows":0,"n_cols":0,"rows_kept":0,"cut":false,"hidden":false,"merged":[]}

{"sheet":"Foglio119","index":118,"n_rows":0,"n_cols":0,"rows_kept":0,"cut":false,"hidden":false,"merged":[]}

{"sheet":"Foglio120","index":119,"n_rows":0,"n_cols":0,"rows_kept":0,"cut":false,"hidden":false,"merged":[]}

{"sheet":"Foglio121","index":120,"n_rows":0,"n_cols":0,"rows_kept":0,"cut":false,"hidden":false,"merged":[]}

{"sheet":"Foglio122","index":121,"n_rows":0,"n_cols":0,"rows_kept":0,"cut":false,"hidden":false,"merged":[]}

{"sheet":"Foglio123","index":122,"n_rows":0,"n_cols":0,"rows_kept":0,"cut":false,"hidden":false,"merged":[]}

{"sheet":"Foglio124","index":123,"n_rows":0,"n_cols":0,"rows_kept":0,"cut":false,"hidden":false,"merged":[]}

{"sheet":"Foglio125","index":124,"n_rows":0,"n_cols":0,"rows_kept":0,"cut":false,"hidden":false,"merged":[]}

{"sheet":"Foglio126","index":125,"n_rows":0,"n_cols":0,"rows_kept":0,"cut":false,"hidden":false,"merged":[]}

{"sheet":"Foglio127","index":126,"n_rows":0,"n_cols":0,"rows_kept":0,"cut":false,"hidden":false,"merged":[]}

{"sheet":"Foglio128","index":127,"n_rows":0,"n_cols":0,"rows_kept":0,"cut":false,"hidden":false,"merged":[]}

{"sheet":"Foglio129","index":128,"n_rows":0,"n_cols":0,"rows_kept":0,"cut":false,"hidden":false,"merged":[]}

{"sheet":"Foglio130","index":129,"n_rows":0,"n_cols":0,"rows_kept":0,"cut":false,"hidden":false,"merged":[]}

{"sheet":"Foglio131","index":130,"n_rows":0,"n_cols":0,"rows_kept":0,"cut":false,"hidden":false,"merged":[]}

{"sheet":"Foglio132","index":131,"n_rows":0,"n_cols":0,"rows_kept":0,"cut":false,"hidden":false,"merged":[]}

{"sheet":"Foglio133","index":132,"n_rows":0,"n_cols":0,"rows_kept":0,"cut":false,"hidden":false,"merged":[]}

{"sheet":"Foglio134","index":133,"n_rows":0,"n_cols":0,"rows_kept":0,"cut":false,"hidden":false,"merged":[]}

{"sheet":"Foglio135","index":134,"n_rows":0,"n_cols":0,"rows_kept":0,"cut":false,"hidden":false,"merged":[]}

{"sheet":"Foglio136","index":135,"n_rows":0,"n_cols":0,"rows_kept":0,"cut":false,"hidden":false,"merged":[]}